[Event "20 ans"]
[Date "2016.10.27"]
[Round "1"]
[White "Radjabov, Teimour"]
[Black "Deac, Bogdan-Daniel"]
[Result "1/2-1/2"]
[WhiteElo "2788"]
[BlackElo "2443"]
[ECO "A05"]
[WhiteFed "AZE"]
[BlackFed "ROU"]
[FCGameId "536703444"]
[TimeControl "900+3"]

1. Nf3 {[%clk 0:15:05]} Nf6 {[%clk 0:15:03]} 2. g3 {[%clk 0:15:07]} g6  {[%clk 0:14:35]} 3. b3 {[%clk 0:15:10]} d6 {[%clk 0:14:30]} 4. Bb2  {[%clk 0:15:11]} Bg7 {[%clk 0:14:31]} 5. Bg2 {[%clk 0:15:13]} e5  {[%clk 0:14:28]} 6. c4 {[%clk 0:15:09]} c5 {[%clk 0:14:25]} 7. Nc3  {[%clk 0:15:04]} Nc6 {[%clk 0:14:26]} 8. d3 {[%clk 0:15:06]} O-O  {[%clk 0:14:22]} 9. Nd2 {[%clk 0:15:08]} Be6 {[%clk 0:13:27]} 10. Nde4  {[%clk 0:15:00]} h6 {[%clk 0:13:03]} 11. Qd2 {[%clk 0:14:22]} Ne8  {[%clk 0:12:55]} 12. Nd5 {[%clk 0:14:24]} Ne7 {[%clk 0:12:02]} 13. Nec3  {[%clk 0:14:03]} Nxd5 {[%clk 0:11:58]} 14. Nxd5 {[%clk 0:14:04]} Nc7  {[%clk 0:07:48]} 15. Nc3 {[%clk 0:08:09]} d5 {[%clk 0:07:30]} 16. cxd5  {[%clk 0:08:10]} Nxd5 {[%clk 0:07:32]} 17. O-O {[%clk 0:08:11]} Rc8  {[%clk 0:07:21]} 18. Rfc1 {[%clk 0:08:13]} b6 {[%clk 0:07:10]} 19. a3  {[%clk 0:07:03]} Ne7 {[%clk 0:06:39]} 20. b4 {[%clk 0:06:27]} c4  {[%clk 0:06:35]} 21. Rd1 {[%clk 0:06:28]} cxd3 22. Qxd3 Qxd3 {[%clk 0:01:07]}  23. Rxd3 {[%clk 0:06:32]} Rfd8 {[%clk 0:01:09]} 24. Rxd8+ {[%clk 0:04:46]} Rxd8  {[%clk 0:01:11]} 25. Rd1 {[%clk 0:04:48]} Rxd1+ {[%clk 0:01:00]} 26. Nxd1  {[%clk 0:04:50]} Nf5 {[%clk 0:00:59]} 27. e4 {[%clk 0:01:10]} Nd6  {[%clk 0:00:55]} 28. Ne3 {[%clk 0:01:12]} Nc4 {[%clk 0:00:30]} 29. Bc1  {[%clk 0:00:53]} Kf8 {[%clk 0:00:22]} 30. Bf1 {[%clk 0:00:54]} Nxe3  {[%clk 0:00:10]} 31. Bxe3 {[%clk 0:00:56]} Ke7 {[%clk 0:00:12]} 32. f3  {[%clk 0:00:46]} Kd6 {[%clk 0:00:13]} 33. Kf2 {[%clk 0:00:48]} Kc6  {[%clk 0:00:10]} 34. Ke1 {[%clk 0:00:45]} Bf8 {[%clk 0:00:08]} 35. Kd2  {[%clk 0:00:47]} a5 {[%clk 0:00:09]} 36. Kc3 {[%clk 0:00:30]} axb4+  {[%clk 0:00:10]} 37. axb4 {[%clk 0:00:32]} b5 {[%clk 0:00:10]} 38. Bd3  {[%clk 0:00:32]} h5 {[%clk 0:00:06]} 39. Be2 {[%clk 0:00:26]} Be7  {[%clk 0:00:07]} 40. Bd3 {[%clk 0:00:15]} f6 {[%clk 0:00:07]} 41. Bf1  {[%clk 0:00:16]} Bd6 {[%clk 0:00:08]} 42. Bg2 {[%clk 0:00:18]} Bc7  {[%clk 0:00:09]} 43. Bc5 {[%clk 0:00:10]} Bd6 {[%clk 0:00:11]} 44. Be3  {[%clk 0:00:11]} Bc7 {[%clk 0:00:13]} 45. f4 {[%clk 0:00:12]} Bf7  {[%clk 0:00:12]} 46. h4 {[%clk 0:00:13]} Bb6 {[%clk 0:00:08]} 47. Kd2  {[%clk 0:00:15]} Bxe3+ {[%clk 0:00:08]} 48. Kxe3 {[%clk 0:00:17]} Kd6  {[%clk 0:00:10]} 49. Bh3 {[%clk 0:00:17]} Be6 {[%clk 0:00:09]} 50. f5  {[%clk 0:00:14]} gxf5 {[%clk 0:00:10]} 51. exf5 {[%clk 0:00:16]} Bc4  {[%clk 0:00:09]} 52. g4 {[%clk 0:00:17]} hxg4 {[%clk 0:00:10]} 53. Bxg4  {[%clk 0:00:19]} Ke7 {[%clk 0:00:11]} 54. Bf3 {[%clk 0:00:10]} Kf7  {[%clk 0:00:11]} 55. Bh5+ {[%clk 0:00:08]} Kg7 {[%clk 0:00:13]} 56. Be8  {[%clk 0:00:10]} Kh6 {[%clk 0:00:13]} 57. Ke4 {[%clk 0:00:11]} Kg7  {[%clk 0:00:12]} 58. Ke3 {[%clk 0:00:08]} Kh6 {[%clk 0:00:14]} 59. Ke4  {[%clk 0:00:10]} Kg7 {[%clk 0:00:17]} 60. Ke3 {[%clk 0:00:09]} Kh6  {[%clk 0:00:19]} 61. Ke4 {[%clk 0:00:10]} 1/2-1/2

[Event "20 ans"]
[Date "2016.10.27"]
[Round "1"]
[White "Hou, Yifan"]
[Black "Azarov, Sergei"]
[Result "0-1"]
[WhiteElo "2645"]
[BlackElo "2586"]
[ECO "C50"]
[WhiteFed "CHN"]
[BlackFed "BLR"]
[FCGameId "-431036063"]
[TimeControl "900+3"]

1. e4 {[%clk 0:15:04]} e5 {[%clk 0:15:05]} 2. Nf3 {[%clk 0:15:05]} Nc6  {[%clk 0:15:06]} 3. Bc4 {[%clk 0:14:58]} Bc5 {[%clk 0:15:07]} 4. O-O  {[%clk 0:14:58]} d6 {[%clk 0:15:05]} 5. c3 {[%clk 0:14:51]} Nf6 {[%clk 0:15:05]}  6. d3 {[%clk 0:14:53]} a6 {[%clk 0:15:05]} 7. a4 {[%clk 0:14:50]} Ba7  {[%clk 0:14:54]} 8. Re1 {[%clk 0:14:25]} h6 {[%clk 0:14:10]} 9. Nbd2  {[%clk 0:13:44]} O-O {[%clk 0:14:07]} 10. h3 {[%clk 0:13:45]} Be6  {[%clk 0:13:47]} 11. b4 {[%clk 0:11:38]} d5 {[%clk 0:11:24]} 12. exd5  {[%clk 0:11:01]} Nxd5 {[%clk 0:11:24]} 13. Ne4 {[%clk 0:08:17]} Re8  {[%clk 0:09:32]} 14. Bd2 {[%clk 0:06:34]} Nf6 {[%clk 0:08:24]} 15. Qb3  {[%clk 0:05:24]} Nxe4 {[%clk 0:07:05]} 16. dxe4 {[%clk 0:05:24]} Qf6  {[%clk 0:07:03]} 17. Kh2 {[%clk 0:03:26]} Rad8 {[%clk 0:06:42]} 18. Bd5  {[%clk 0:03:17]} Bxd5 {[%clk 0:06:01]} 19. exd5 {[%clk 0:03:18]} e4  {[%clk 0:06:03]} 20. dxc6 {[%clk 0:02:02]} exf3 {[%clk 0:06:04]} 21. Rxe8+  {[%clk 0:02:04]} Rxe8 {[%clk 0:06:05]} 22. Be3 {[%clk 0:01:07]} Bxe3  {[%clk 0:05:33]} 23. fxe3 {[%clk 0:01:08]} Qe5+ {[%clk 0:05:21]} 24. Kh1  {[%clk 0:01:05]} fxg2+ {[%clk 0:05:15]} 25. Kxg2 {[%clk 0:01:07]} Qg5+  {[%clk 0:04:59]} 26. Kh2 {[%clk 0:00:35]} Rxe3 {[%clk 0:04:51]} 27. Qc2  {[%clk 0:00:16]} Qe5+ {[%clk 0:04:11]} 28. Kg1 {[%clk 0:00:14]} Re2  {[%clk 0:03:55]} 29. Qxe2 {[%clk 0:00:14]} Qxe2 {[%clk 0:03:57]} 30. cxb7  {[%clk 0:00:15]} Qe3+ {[%clk 0:03:58]} 31. Kh2 {[%clk 0:00:16]} Qf2+  {[%clk 0:03:59]} 0-1

[Event "20 ans"]
[Date "2016.10.27"]
[Round "1"]
[White "Korobov, Anton"]
[Black "Antipov, Mikhail Al."]
[Result "1-0"]
[WhiteElo "2714"]
[BlackElo "2617"]
[ECO "E32"]
[WhiteFed "UKR"]
[BlackFed "RUS"]
[FCGameId "-942108317"]
[TimeControl "900+3"]

1. d4 {[%clk 0:15:04]} Nf6 {[%clk 0:15:05]} 2. c4 {[%clk 0:15:06]} e6  {[%clk 0:15:07]} 3. Nc3 {[%clk 0:15:07]} Bb4 {[%clk 0:15:09]} 4. Qc2  {[%clk 0:15:09]} d6 {[%clk 0:15:07]} 5. Bg5 {[%clk 0:15:08]} Nbd7  {[%clk 0:15:04]} 6. e3 {[%clk 0:15:08]} c5 {[%clk 0:15:02]} 7. Bd3  {[%clk 0:15:07]} b5 {[%clk 0:15:04]} 8. Ne2 {[%clk 0:14:01]} h6 {[%clk 0:14:12]}  9. Bxf6 {[%clk 0:13:37]} Nxf6 {[%clk 0:13:59]} 10. cxb5 {[%clk 0:13:36]} Bb7  {[%clk 0:13:50]} 11. O-O {[%clk 0:13:35]} Rc8 {[%clk 0:13:22]} 12. a3  {[%clk 0:13:19]} Bxc3 {[%clk 0:11:00]} 13. Nxc3 {[%clk 0:13:16]} cxd4  {[%clk 0:10:53]} 14. exd4 {[%clk 0:13:18]} Qb6 {[%clk 0:10:55]} 15. Qa4  {[%clk 0:13:06]} O-O {[%clk 0:10:48]} 16. Rfe1 {[%clk 0:12:21]} Rfd8  {[%clk 0:10:22]} 17. Qb4 {[%clk 0:11:55]} Ba8 {[%clk 0:08:43]} 18. Bf1  {[%clk 0:11:48]} e5 {[%clk 0:08:41]} 19. Rad1 {[%clk 0:11:29]} e4  {[%clk 0:08:07]} 20. d5 {[%clk 0:11:11]} Re8 {[%clk 0:05:17]} 21. Qd4  {[%clk 0:10:12]} Qd8 {[%clk 0:04:46]} 22. Nxe4 {[%clk 0:08:46]} Nxd5  {[%clk 0:04:41]} 23. Qxa7 {[%clk 0:08:28]} Nf4 {[%clk 0:04:21]} 24. Ng3  {[%clk 0:07:54]} h5 {[%clk 0:03:42]} 25. b6 {[%clk 0:07:29]} h4 {[%clk 0:02:08]}  26. b7 {[%clk 0:06:51]} Bxb7 {[%clk 0:02:09]} 27. Rxe8+ {[%clk 0:06:42]} Qxe8  {[%clk 0:02:11]} 28. Qxb7 {[%clk 0:06:43]} hxg3 {[%clk 0:02:12]} 29. hxg3  {[%clk 0:06:45]} Ne6 {[%clk 0:02:01]} 30. Qe4 {[%clk 0:06:15]} Rb8  {[%clk 0:00:38]} 31. b4 {[%clk 0:05:58]} Qd7 {[%clk 0:00:17]} 32. Bc4  {[%clk 0:05:45]} Nf8 {[%clk 0:00:11]} 33. Re1 {[%clk 0:05:08]} Rc8  {[%clk 0:00:08]} 34. Bd5 {[%clk 0:05:06]} Qa7 {[%clk 0:00:05]} 35. Qe7  {[%clk 0:04:49]} 1-0

[Event "20 ans"]
[Date "2016.10.27"]
[Round "1"]
[White "Moiseenko, Alexander"]
[Black "Gledura, Benjamin"]
[Result "1-0"]
[WhiteElo "2651"]
[BlackElo "2565"]
[ECO "A45"]
[WhiteFed "UKR"]
[BlackFed "HUN"]
[FCGameId "344313193"]
[TimeControl "900+3"]

1. d4 {[%clk 0:15:05]} Nf6 {[%clk 0:15:04]} 2. Bg5 {[%clk 0:15:07]} d5  {[%clk 0:15:02]} 3. e3 {[%clk 0:15:04]} c5 {[%clk 0:14:53]} 4. Bxf6  {[%clk 0:14:55]} gxf6 {[%clk 0:14:53]} 5. dxc5 {[%clk 0:14:56]} Qa5+  {[%clk 0:14:04]} 6. Nd2 {[%clk 0:14:05]} e6 {[%clk 0:13:49]} 7. Nf3  {[%clk 0:13:38]} Qb4 {[%clk 0:12:17]} 8. c4 {[%clk 0:13:09]} Bxc5  {[%clk 0:11:16]} 9. cxd5 {[%clk 0:13:02]} O-O {[%clk 0:10:32]} 10. Qc2  {[%clk 0:11:22]} Bd7 {[%clk 0:09:08]} 11. a3 {[%clk 0:10:35]} Qa5  {[%clk 0:08:54]} 12. Bd3 {[%clk 0:09:35]} Rc8 {[%clk 0:08:40]} 13. Qc4  {[%clk 0:07:42]} Bf8 {[%clk 0:07:33]} 14. Qh4 {[%clk 0:07:36]} f5  {[%clk 0:07:00]} 15. dxe6 {[%clk 0:07:27]} fxe6 {[%clk 0:07:01]} 16. O-O  {[%clk 0:07:20]} Bg7 {[%clk 0:07:01]} 17. Nc4 {[%clk 0:06:37]} Qd8  {[%clk 0:07:01]} 18. Qg3 {[%clk 0:06:06]} Ba4 {[%clk 0:06:04]} 19. Nce5  {[%clk 0:05:32]} Nc6 {[%clk 0:05:56]} 20. Bc4 {[%clk 0:04:35]} Nxe5  {[%clk 0:05:47]} 21. Nxe5 Qe7 {[%clk 0:05:24]} 22. b3 {[%clk 0:03:57]} Bc6  {[%clk 0:05:23]} 23. Rad1 {[%clk 0:03:55]} Kh8 {[%clk 0:05:18]} 24. a4  {[%clk 0:03:46]} Be8 {[%clk 0:04:14]} 25. Rd6 {[%clk 0:03:22]} Rxc4  {[%clk 0:02:51]} 26. Nxc4 {[%clk 0:03:07]} Bc6 {[%clk 0:02:47]} 27. Ne5  {[%clk 0:02:11]} Bd5 {[%clk 0:02:49]} 28. Rd7 {[%clk 0:02:07]} Qf6  {[%clk 0:02:50]} 29. f4 {[%clk 0:01:17]} Rc8 {[%clk 0:02:52]} 30. h3  {[%clk 0:01:10]} h5 {[%clk 0:02:05]} 31. Qg6 {[%clk 0:00:53]} Qxg6  {[%clk 0:02:02]} 32. Nxg6+ {[%clk 0:00:54]} Kh7 {[%clk 0:02:04]} 33. Ne7  {[%clk 0:00:56]} 1-0

[Event "20 ans"]
[Date "2016.10.27"]
[Round "1"]
[White "Gharamian, Tigran"]
[Black "Vocaturo, Daniele"]
[Result "1-0"]
[WhiteElo "2638"]
[BlackElo "2606"]
[ECO "C81"]
[WhiteFed "FRA"]
[BlackFed "ITA"]
[FCGameId "362332801"]
[TimeControl "900+3"]

1. e4 {[%clk 0:15:03]} e5 {[%clk 0:15:02]} 2. Nf3 {[%clk 0:15:04]} Nc6  {[%clk 0:15:03]} 3. Bb5 {[%clk 0:15:05]} a6 {[%clk 0:14:57]} 4. Ba4  {[%clk 0:15:06]} Nf6 {[%clk 0:14:52]} 5. O-O {[%clk 0:14:58]} Nxe4  {[%clk 0:14:44]} 6. d4 {[%clk 0:14:54]} b5 {[%clk 0:14:39]} 7. Bb3  {[%clk 0:14:53]} d5 {[%clk 0:14:38]} 8. dxe5 {[%clk 0:14:50]} Be6  {[%clk 0:14:34]} 9. Qe2 {[%clk 0:14:32]} Bc5 {[%clk 0:13:20]} 10. Nbd2  {[%clk 0:11:47]} Nxd2 {[%clk 0:12:18]} 11. Bxd2 {[%clk 0:11:48]} O-O  {[%clk 0:11:10]} 12. Rad1 {[%clk 0:11:15]} Bg4 {[%clk 0:09:42]} 13. Be3  {[%clk 0:09:17]} Bxe3 {[%clk 0:06:57]} 14. Qxe3 {[%clk 0:09:15]} d4  {[%clk 0:06:09]} 15. Qe4 {[%clk 0:08:54]} Bxf3 {[%clk 0:06:09]} 16. gxf3  {[%clk 0:08:41]} Na5 {[%clk 0:04:55]} 17. Rxd4 {[%clk 0:07:55]} Qg5+  {[%clk 0:04:56]} 18. Kh1 {[%clk 0:07:57]} c5 {[%clk 0:04:54]} 19. Bxf7+  {[%clk 0:07:54]} Kh8 {[%clk 0:04:27]} 20. Rd7 {[%clk 0:07:55]} Nc4  {[%clk 0:04:25]} 21. Bxc4 {[%clk 0:07:33]} bxc4 {[%clk 0:04:26]} 22. Rg1  {[%clk 0:07:30]} Qh6 {[%clk 0:04:21]} 23. Rgxg7 {[%clk 0:06:19]} Qxg7  {[%clk 0:04:22]} 24. Rxg7 {[%clk 0:06:21]} Kxg7 {[%clk 0:04:23]} 25. f4  {[%clk 0:05:01]} Rad8 {[%clk 0:04:16]} 26. c3 {[%clk 0:04:26]} Kh8  {[%clk 0:02:46]} 27. Kg2 {[%clk 0:04:27]} Rg8+ {[%clk 0:02:46]} 28. Kf3  {[%clk 0:04:28]} Rd3+ {[%clk 0:02:45]} 29. Ke2 {[%clk 0:04:30]} Rgd8  {[%clk 0:02:34]} 30. Qxc4 {[%clk 0:04:15]} Rd2+ {[%clk 0:02:36]} 31. Ke3  {[%clk 0:04:12]} Rxb2 {[%clk 0:02:36]} 32. Qf7 {[%clk 0:04:01]} Rbb8  {[%clk 0:02:06]} 33. Qf6+ {[%clk 0:03:40]} Kg8 {[%clk 0:02:07]} 34. e6  {[%clk 0:03:35]} Rf8 {[%clk 0:02:02]} 35. Qg5+ {[%clk 0:03:37]} Kh8  {[%clk 0:01:59]} 36. Qe5+ {[%clk 0:03:28]} Kg8 {[%clk 0:02:00]} 37. f5  {[%clk 0:03:31]} Rb1 {[%clk 0:01:55]} 38. Kf3 {[%clk 0:03:14]} Rb6  {[%clk 0:01:31]} 39. f6 {[%clk 0:03:03]} 1-0

[Event "20 ans"]
[Date "2016.10.27"]
[Round "1"]
[White "Andriasian, Zaven"]
[Black "Onischuk, Vladimir"]
[Result "0-1"]
[WhiteElo "2611"]
[BlackElo "2720"]
[ECO "B07"]
[WhiteFed "ARM"]
[BlackFed "UKR"]
[FCGameId "-10952182"]
[TimeControl "900+3"]

1. e4 {[%clk 0:15:04]} d6 {[%clk 0:15:05]} 2. d4 {[%clk 0:15:05]} Nf6  {[%clk 0:15:07]} 3. Nc3 {[%clk 0:15:07]} g6 {[%clk 0:15:09]} 4. Be3  {[%clk 0:15:07]} a6 {[%clk 0:15:00]} 5. f3 {[%clk 0:15:06]} b5 {[%clk 0:14:47]}  6. Qd2 {[%clk 0:15:06]} Nbd7 {[%clk 0:14:40]} 7. g4 {[%clk 0:15:07]} Nb6  {[%clk 0:13:49]} 8. Bd3 {[%clk 0:14:47]} h5 {[%clk 0:13:41]} 9. g5  {[%clk 0:14:31]} Nfd7 {[%clk 0:13:42]} 10. a4 {[%clk 0:13:38]} Nc4  {[%clk 0:12:53]} 11. Bxc4 {[%clk 0:13:38]} bxc4 {[%clk 0:12:55]} 12. Qe2  {[%clk 0:12:22]} Rb8 {[%clk 0:12:27]} 13. O-O-O {[%clk 0:12:23]} Rb4  {[%clk 0:12:02]} 14. f4 {[%clk 0:11:37]} c6 {[%clk 0:10:55]} 15. Nf3  {[%clk 0:11:39]} Nb6 {[%clk 0:10:31]} 16. d5 {[%clk 0:10:25]} c5  {[%clk 0:08:50]} 17. Na2 {[%clk 0:06:54]} Rxa4 {[%clk 0:08:23]} 18. Nc3  {[%clk 0:06:56]} Rb4 {[%clk 0:06:00]} 19. Na2 {[%clk 0:06:58]} Rb5  {[%clk 0:05:05]} 20. Nc3 {[%clk 0:06:59]} Bg7 {[%clk 0:04:56]} 21. Nxb5  {[%clk 0:05:22]} axb5 {[%clk 0:04:58]} 22. f5 {[%clk 0:04:21]} Na4  {[%clk 0:03:30]} 23. c3 {[%clk 0:04:07]} Qa5 {[%clk 0:01:54]} 24. Qc2  {[%clk 0:01:38]} b4 {[%clk 0:01:31]} 25. f6 {[%clk 0:01:40]} exf6  {[%clk 0:01:27]} 26. cxb4 {[%clk 0:01:42]} Qxb4 {[%clk 0:01:16]} 27. Bd2  {[%clk 0:01:44]} Qb5 {[%clk 0:00:39]} 28. Bc3 {[%clk 0:01:45]} Nxc3  {[%clk 0:00:31]} 29. Qxc3 {[%clk 0:01:38]} O-O {[%clk 0:00:32]} 30. gxf6  {[%clk 0:01:40]} Bh6+ {[%clk 0:00:34]} 31. Kb1 {[%clk 0:01:30]} Bg4  {[%clk 0:00:25]} 32. Rhf1 {[%clk 0:01:31]} Rb8 {[%clk 0:00:24]} 33. h3  {[%clk 0:01:03]} Bxh3 {[%clk 0:00:22]} 34. Rf2 {[%clk 0:01:03]} Bg4  {[%clk 0:00:22]} 35. Rg1 {[%clk 0:00:48]} Qa4 {[%clk 0:00:23]} 36. Nd2  {[%clk 0:00:29]} Rb3 {[%clk 0:00:20]} 37. Qxc4 {[%clk 0:00:25]} Rb4  {[%clk 0:00:21]} 38. Qc3 {[%clk 0:00:22]} Rd4 {[%clk 0:00:21]} 39. Re1  {[%clk 0:00:13]} Bg5 {[%clk 0:00:19]} 40. Rc1 {[%clk 0:00:08]} Bxd2 41. Rxd2  Rxe4 {[%clk 0:00:15]} 42. b3 {[%clk 0:00:11]} Qe8 {[%clk 0:00:11]} 43. Kb2  {[%clk 0:00:13]} Qe5 {[%clk 0:00:10]} 44. Ra1 {[%clk 0:00:12]} Qxc3+  {[%clk 0:00:10]} 45. Kxc3 {[%clk 0:00:14]} Rf4 {[%clk 0:00:12]} 46. Ra8+  {[%clk 0:00:06]} Kh7 {[%clk 0:00:14]} 47. Rd8 {[%clk 0:00:06]} Rxf6  {[%clk 0:00:16]} 48. Kc4 {[%clk 0:00:08]} h4 {[%clk 0:00:16]} 49. Kb5  {[%clk 0:00:09]} h3 {[%clk 0:00:14]} 50. Kc6 {[%clk 0:00:11]} Bf3  {[%clk 0:00:13]} 51. Rh2 {[%clk 0:00:14]} Bg2 {[%clk 0:00:15]} 52. Rxd6  {[%clk 0:00:16]} Rf3 {[%clk 0:00:11]} 53. Kxc5 {[%clk 0:00:16]} g5  {[%clk 0:00:12]} 54. Rd8 {[%clk 0:00:12]} g4 {[%clk 0:00:13]} 55. d6  {[%clk 0:00:12]} g3 {[%clk 0:00:13]} 56. d7 {[%clk 0:00:12]} Rd3  {[%clk 0:00:14]} 57. Kc4 {[%clk 0:00:12]} Rd1 {[%clk 0:00:13]} 58. Rxg2  {[%clk 0:00:08]} hxg2 {-error} 0-1

[Event "20 ans"]
[Date "2016.10.28"]
[Round "QF1.1"]
[White "Korobov, Anton"]
[Black "Hou, Yifan"]
[Result "0-1"]
[WhiteElo "2714"]
[BlackElo "2645"]
[ECO "E58"]
[WhiteFed "UKR"]
[BlackFed "CHN"]
[FCGameId "708775363"]
[TimeControl "900+3"]

1. d4 {[%clk 0:15:04]} Nf6 {[%clk 0:15:05]} 2. c4 {[%clk 0:15:06]} e6  {[%clk 0:15:06]} 3. Nc3 {[%clk 0:15:07]} Bb4 {[%clk 0:15:08]} 4. e3  {[%clk 0:15:08]} O-O {[%clk 0:15:04]} 5. Bd3 {[%clk 0:15:09]} d5  {[%clk 0:14:36]} 6. Nf3 {[%clk 0:15:10]} c5 {[%clk 0:14:35]} 7. O-O  {[%clk 0:15:10]} Nc6 {[%clk 0:14:35]} 8. a3 {[%clk 0:15:09]} Bxc3  {[%clk 0:14:36]} 9. bxc3 {[%clk 0:15:10]} Qc7 {[%clk 0:14:33]} 10. Bb2  {[%clk 0:15:11]} dxc4 {[%clk 0:13:59]} 11. Bxc4 {[%clk 0:15:12]} e5  {[%clk 0:14:01]} 12. h3 {[%clk 0:15:14]} Bf5 {[%clk 0:13:57]} 13. Qe2  {[%clk 0:15:15]} Rad8 {[%clk 0:13:51]} 14. Bb5 {[%clk 0:14:59]} e4  {[%clk 0:13:45]} 15. Nd2 {[%clk 0:14:57]} Bg6 {[%clk 0:12:52]} 16. Nb3  {[%clk 0:14:45]} Bh5 {[%clk 0:09:25]} 17. g4 {[%clk 0:13:45]} Bg6  {[%clk 0:08:09]} 18. Nxc5 {[%clk 0:13:24]} h5 {[%clk 0:08:11]} 19. f4  {[%clk 0:11:34]} exf3 {[%clk 0:08:12]} 20. Qxf3 {[%clk 0:11:26]} hxg4  {[%clk 0:08:01]} 21. hxg4 {[%clk 0:11:27]} Rd5 {[%clk 0:07:56]} 22. Qf4  {[%clk 0:11:16]} Qe7 {[%clk 0:05:11]} 23. c4 {[%clk 0:10:57]} Rdd8  {[%clk 0:05:14]} 24. Rae1 {[%clk 0:10:50]} Ne4 {[%clk 0:03:58]} 25. Nxe4  {[%clk 0:10:19]} Bxe4 {[%clk 0:03:59]} 26. d5 {[%clk 0:10:18]} a6  {[%clk 0:03:20]} 27. dxc6 {[%clk 0:05:07]} Rd2 {[%clk 0:02:26]} 28. Bf6  {[%clk 0:03:43]} Rg2+ {[%clk 0:01:47]} 29. Kh1 {[%clk 0:03:45]} gxf6  {[%clk 0:01:49]} 30. Rf3 {[%clk 0:03:31]} Rf2 {[%clk 0:01:51]} 0-1

[Event "20 ans"]
[Date "2016.10.28"]
[Round "QF1.1"]
[White "Vachier-Lagrave, Maxime"]
[Black "Onischuk, Vladimir"]
[Result "1-0"]
[WhiteElo "2795"]
[BlackElo "2720"]
[ECO "E68"]
[WhiteFed "FRA"]
[BlackFed "UKR"]
[FCGameId "124720661"]
[TimeControl "900+3"]

1. Nf3 {[%clk 0:15:05]} g6 {[%clk 0:14:57]} 2. g3 {[%clk 0:15:07]} Bg7  {[%clk 0:14:59]} 3. Bg2 {[%clk 0:15:09]} Nf6 {[%clk 0:15:00]} 4. c4  {[%clk 0:15:11]} O-O {[%clk 0:15:00]} 5. Nc3 {[%clk 0:15:12]} d6  {[%clk 0:14:57]} 6. d4 {[%clk 0:15:12]} Nbd7 {[%clk 0:13:56]} 7. O-O  {[%clk 0:15:07]} e5 {[%clk 0:13:57]} 8. e4 {[%clk 0:14:49]} c6 {[%clk 0:13:48]}  9. Re1 {[%clk 0:14:42]} b6 {[%clk 0:13:20]} 10. b3 {[%clk 0:13:58]} Bb7  {[%clk 0:13:05]} 11. Bb2 {[%clk 0:14:00]} a6 {[%clk 0:12:28]} 12. a4  {[%clk 0:12:52]} Re8 {[%clk 0:11:56]} 13. d5 {[%clk 0:12:39]} Rc8  {[%clk 0:09:04]} 14. dxc6 {[%clk 0:11:55]} Rxc6 {[%clk 0:09:04]} 15. Nd2  {[%clk 0:07:35]} Nc5 {[%clk 0:08:47]} 16. Nf1 {[%clk 0:07:37]} Rc7  {[%clk 0:07:59]} 17. a5 {[%clk 0:06:35]} bxa5 {[%clk 0:07:16]} 18. Rxa5  {[%clk 0:06:36]} Ne6 {[%clk 0:06:57]} 19. Ne3 {[%clk 0:06:34]} Nd4  {[%clk 0:06:14]} 20. Ra3 {[%clk 0:05:49]} Qb8 {[%clk 0:03:17]} 21. Nc2  {[%clk 0:05:41]} Ne6 {[%clk 0:02:27]} 22. Qxd6 {[%clk 0:02:27]} Rd8  {[%clk 0:01:52]} 23. Qb6 {[%clk 0:01:57]} Bf8 {[%clk 0:01:33]} 24. Nd5  {[%clk 0:01:53]} Nd7 {[%clk 0:00:54]} 25. Qe3 {[%clk 0:01:31]} Bxa3  {[%clk 0:00:48]} 26. Bxa3 {[%clk 0:01:23]} Bxd5 {[%clk 0:00:44]} 27. exd5  {[%clk 0:01:25]} Nd4 {[%clk 0:00:46]} 28. Nxd4 {[%clk 0:01:21]} exd4  {[%clk 0:00:40]} 29. Qxd4 {[%clk 0:01:17]} Re8 {[%clk 0:00:23]} 30. Rxe8+  {[%clk 0:01:03]} Qxe8 {[%clk 0:00:25]} 31. h3 {[%clk 0:00:46]} Rb7  {[%clk 0:00:17]} 32. Bb2 {[%clk 0:00:45]} f6 {[%clk 0:00:18]} 33. c5  {[%clk 0:00:40]} Rxb3 {[%clk 0:00:19]} 34. c6 {[%clk 0:00:41]} Ne5  {[%clk 0:00:11]} 35. d6 {[%clk 0:00:32]} Nxc6 {[%clk 0:00:05]} 36. Qc4+  {[%clk 0:00:31]} 1-0